[Event "4th Chessfestival Gredine 2018"]
[Site "Ortisei"]
[Date "2018.06.21"]
[Round "6.20"]
[White "Curien, Nicolas"]
[Black "Uhl, Michael"]
[Result "1-0"]
[ECO "D00"]
[WhiteElo "2204"]
[BlackElo "2116"]
[Annotator "NA"]
[PlyCount "71"]
[EventDate "2018.06.16"]
[EventType "swiss"]
[EventCountry "ITA"]
[SourceTitle "playchess.com"]
[Source "ChessBase"]
[SourceQuality "1"]
[TimeControl "40/5400+30:1800+30"]

1. d4 {[%emt 0:00:30]} d5 {[%emt 0:01:00]} 2. Bf4 {[%emt 0:00:00]} c5 {[%emt 0:00:30]} 3. e3 {[%emt 0:00:00]} Nc6 {[%emt 0:00:30]} 4. c3 {[%emt 0:00:30]} Nf6 {[%emt 0:00:30]} 5. Nd2 {[%emt 0:00:00]} Qb6 {[%emt 0:00:30]} 6. Qb3 {[%emt 0:01:00]} c4 {[%emt 0:01:30]} 7. Qc2 {[%emt 0:00:30]} Bg4 {[%emt 0:01:30]} 8. h3 {[%emt 0:06:30]} Bh5 {[%emt 0:01:30]} 9. b3 {[%emt 0:00:30]} Bg6 {[%emt 0:00:30]} 10. Qd1 {[%emt 0:02:30]} cxb3 {[%emt 0:03:30]} 11. axb3 {[%emt 0:00:30]} e6 {[%emt 0:02:30]} 12. b4 {[%emt 0:10:30]} Be7 {[%emt 0:11:30]} 13. b5 {[%emt 0:01:30]} Nb8 {[%emt 0:02:30]} 14. Ngf3 {[%emt 0:17:30]} O-O {[%emt 0:02:30]} 15. Be2 {[%emt 0:02:30]} Rc8 {[%emt 0:01:30]} 16. Qb3 {[%emt 0:01:30]} Ne4 {[%emt 0:05:30]} 17. c4 {[%emt 0:04:30]} dxc4 {[%emt 0:04:30]} 18. Nxc4 {[%emt 0:00:30]} Qd8 {[%emt 0:00:00]} 19. O-O {[%emt 0:01:30]} Nd7 {[%emt 0:04:00]} 20. Rfc1 {[%emt 0:03:30]} Nb6 {[%emt 0:06:30]} 21. Nxb6 {[%emt 0:05:30]} Qxb6 {[%emt 0:00:30]} 22. Ne5 {[%emt 0:00:30]} Nf6 {[%emt 0:03:30]} 23. Rxc8+ {[%emt 0:06:30]} Rxc8 {[%emt 0:00:00]} 24. Nc4 {[%emt 0:00:30]} Qd8 {[%emt 0:03:00]} 25. Rxa7 {[%emt 0:00:00]} Be4 {[%emt 0:02:30]} 26. f3 {[%emt 0:05:00]} Bd5 {[%emt 0:00:30]} 27. Qa4 {[%emt 0:00:30]} Bxc4 {[%emt 0:02:30]} 28. Bxc4 {[%emt 0:00:30]} Nd5 {[%emt 0:03:30]} 29. Bxd5 {[%emt 0:00:30]} Qxd5 {[%emt 0:00:00]} 30. e4 {[%emt 0:09:30]} Qd7 {[%emt 0:01:00]} 31. Ra8 {[%emt 0:03:48]} h6 {[%emt 0:02:30]} 32. Rxc8+ {[%emt 0:07:18]} Qxc8 {[%emt 0:00:30]} 33. b6 {[%emt 0:00:52]} e5 {[%emt 0:09:30]} 34. Bxe5 {[%emt 0:01:45]} Qc1+ {[%emt 0:00:30]} 35. Kh2 {[%emt 0:00:09]} Bh4 {[%emt 0:00:30]} 36. Qe8+ {[%emt 0:01:35]} 1-0

[Event "4th Chessfestival Gredine 2018"]
[Site "Ortisei"]
[Date "2018.06.22"]
[Round "7.9"]
[White "Molina, Fabrizio"]
[Black "Bertagnolli, Alexander"]
[Result "1-0"]
[ECO "A45"]
[WhiteElo "2212"]
[BlackElo "2398"]
[Annotator "NA"]
[PlyCount "115"]
[EventDate "2018.06.16"]
[EventType "swiss"]
[EventCountry "ITA"]
[SourceTitle "playchess.com"]
[Source "ChessBase"]
[SourceQuality "1"]
[TimeControl "40/5400+30:1800+30"]

1. d4 {[%emt 0:00:30]} Nf6 {[%emt 0:01:00]} 2. Bf4 {[%emt 0:00:30]} c5 {[%emt 0:01:30]} 3. dxc5 {[%emt 0:06:30]} Qa5+ {[%emt 0:02:30]} 4. Nd2 {[%emt 0:02:30]} Qxc5 {[%emt 0:11:30]} 5. e3 {[%emt 0:03:30]} g6 {[%emt 0:05:30]} 6. Nb3 {[%emt 0:03:30]} Qb6 {[%emt 0:00:30]} 7. Nf3 {[%emt 0:01:30]} Bg7 {[%emt 0:00:30]} 8. c3 {[%emt 0:01:30]} d6 {[%emt 0:01:30]} 9. h3 {[%emt 0:00:30]} O-O {[%emt 0:02:30]} 10. Be2 {[%emt 0:05:30]} a5 {[%emt 0:12:30]} 11. a4 {[%emt 0:01:30]} e5 {[%emt 0:00:30]} 12. Bh2 {[%emt 0:00:30]} Be6 {[%emt 0:00:30]} 13. Nfd2 {[%emt 0:06:30]} Nbd7 {[%emt 0:09:30]} 14. Nc4 {[%emt 0:03:30]} Qc6 {[%emt 0:00:00]} 15. Nbd2 {[%emt 0:11:30]} Bd5 {[%emt 0:01:00]} 16. Bf3 {[%emt 0:16:30]} Bxf3 {[%emt 0:03:30]} 17. Qxf3 {[%emt 0:00:30]} e4 {[%emt 0:00:30]} 18. Qe2 {[%emt 0:00:30]} d5 {[%emt 0:01:30]} 19. Ne5 {[%emt 0:01:30]} Nxe5 {[%emt 0:04:30]} 20. Bxe5 {[%emt 0:00:30]} Nd7 {[%emt 0:00:30]} 21. Bxg7 {[%emt 0:08:30]} Kxg7 {[%emt 0:00:30]} 22. Nb3 {[%emt 0:01:30]} Ne5 {[%emt 0:00:30]} 23. O-O {[%emt 0:00:30]} f5 {[%emt 0:10:30]} 24. Rfd1 {[%emt 0:00:00]} f4 {[%emt 0:03:30]} 25. exf4 {[%emt 0:00:00]} Rxf4 {[%emt 0:02:30]} 26. Qb5 {[%emt 0:03:30]} Nd3 {[%emt 0:02:30]} 27. Nd4 {[%emt 0:00:30]} Qxb5 {[%emt 0:02:30]} 28. axb5 {[%emt 0:00:30]} Rf6 {[%emt 0:00:33]} 29. Rd2 {[%emt 0:00:30]} b6 {[%emt 0:02:56]} 30. Rad1 {[%emt 0:03:21]} a4 {[%emt 0:03:50]} 31. Ra1 {[%emt 0:01:37]} Ra5 {[%emt 0:00:44]} 32. f3 {[%emt 0:02:38]} Kf7 {[%emt 0:03:37]} 33. fxe4 {[%emt 0:00:57]} dxe4 {[%emt 0:00:01]} 34. Re2 {[%emt 0:01:22]} Nc5 {[%emt 0:00:39]} 35. Ra3 {[%emt 0:03:56]} Rd6 {[%emt 0:05:10]} 36. Kf2 {[%emt 0:02:26]} Ne6 {[%emt 0:04:38]} 37. Nxe6 {[%emt 0:02:13]} Rxe6 {[%emt 0:00:00]} 38. c4 {[%emt 0:02:01]} Kf6 {[%emt 0:00:01]} 39. Rd2 {[%emt 0:00:54]} Ra8 {[%emt 0:00:36]} 40. Ke3 {[%emt 0:00:33]} Ree8 {[%emt 0:32:09]} 41. Rd6+ {[%emt 0:02:02]} Ke5 {[%emt 0:00:00]} 42. Rxb6 {[%emt 0:00:30]} Rad8 {[%emt 0:00:00]} 43. Rb7 {[%emt 0:04:30]} Rd1 {[%emt 0:00:00]} 44. Rxa4 {[%emt 0:08:32]} Rd3+ {[%emt 0:00:00]} 45. Ke2 {[%emt 0:00:28]} Rb3 {[%emt 0:00:00]} 46. Rd7 {[%emt 0:01:16]} Rxb2+ {[%emt 0:00:00]} 47. Rd2 {[%emt 0:00:00]} Rxd2+ {[%emt 0:00:00]} 48. Kxd2 {[%emt 0:00:20]} Kd4 {[%emt 0:00:00]} 49. b6 {[%emt 0:04:08]} Rb8 {[%emt 0:00:00]} 50. Rb4 {[%emt 0:01:37]} Rb7 {[%emt 0:00:00]} 51. h4 {[%emt 0:04:23]} h6 {[%emt 0:00:00]} 52. g4 {[%emt 0:00:29]} e3+ {[%emt 0:00:00]} 53. Ke2 {[%emt 0:00:32]} Kc5 {[%emt 0:00:00]} 54. Rb1 {[%emt 0:00:39]} Kxc4 {[%emt 0:00:00]} 55. Kxe3 {[%emt 0:00:03]} Kc5 {[%emt 0:00:00]} 56. Ke4 {[%emt 0:01:01]} Re7+ {[%emt 0:00:00]} 57. Kf4 {[%emt 0:00:12]} Kc6 {[%emt 0:00:00]} 58. b7 {[%emt 0:02:42]} 1-0

[Event "4th Chessfestival Gredine 2018"]
[Site "Ortisei"]
[Date "2018.06.22"]
[Round "7.12"]
[White "Sarkar, Justin"]
[Black "Movileanu, Daniela"]
[Result "1-0"]
[ECO "D81"]
[WhiteElo "2297"]
[BlackElo "2199"]
[Annotator "NA"]
[PlyCount "83"]
[EventDate "2018.06.16"]
[EventType "swiss"]
[EventCountry "ITA"]
[SourceTitle "playchess.com"]
[Source "ChessBase"]
[SourceQuality "1"]
[TimeControl "40/5400+30:1800+30"]

1. d4 {[%emt 0:00:30]} Nf6 {[%emt 0:01:00]} 2. c4 {[%emt 0:00:30]} g6 {[%emt 0:00:30]} 3. Nc3 {[%emt 0:00:30]} d5 {[%emt 0:00:00]} 4. Qb3 {[%emt 0:00:30]} e6 {[%emt 0:02:00]} 5. Bg5 {[%emt 0:02:30]} c6 {[%emt 0:01:30]} 6. e3 {[%emt 0:06:30]} h6 {[%emt 0:06:30]} 7. Bh4 {[%emt 0:00:30]} Be7 {[%emt 0:05:30]} 8. Nf3 {[%emt 0:01:30]} Nbd7 {[%emt 0:01:30]} 9. Bd3 {[%emt 0:06:30]} O-O {[%emt 0:15:30]} 10. Qc2 {[%emt 0:25:30]} Kg7 {[%emt 0:01:30]} 11. O-O {[%emt 0:04:30]} b6 {[%emt 0:12:30]} 12. e4 {[%emt 0:04:30]} dxe4 {[%emt 0:04:30]} 13. Nxe4 {[%emt 0:00:30]} Nxe4 {[%emt 0:02:30]} 14. Bxe7 {[%emt 0:00:30]} Qxe7 {[%emt 0:00:30]} 15. Bxe4 {[%emt 0:00:00]} Bb7 {[%emt 0:00:30]} 16. Rfe1 {[%emt 0:00:00]} Rfd8 {[%emt 0:05:30]} 17. Rad1 {[%emt 0:10:30]} Qd6 {[%emt 0:07:30]} 18. Qc3 {[%emt 0:01:30]} Nf6 {[%emt 0:06:30]} 19. Bc2 {[%emt 0:00:30]} c5 {[%emt 0:00:30]} 20. dxc5 {[%emt 0:01:30]} Qxc5 {[%emt 0:00:30]} 21. Ne5 {[%emt 0:00:30]} Qe7 {[%emt 0:04:30]} 22. b4 {[%emt 0:01:30]} Rxd1 {[%emt 0:02:03]} 23. Rxd1 {[%emt 0:00:30]} Rd8 {[%emt 0:00:05]} 24. Rxd8 {[%emt 0:00:30]} Qxd8 {[%emt 0:00:06]} 25. f3 {[%emt 0:00:30]} Kg8 {[%emt 0:02:03]} 26. Kf2 {[%emt 0:00:30]} h5 {[%emt 0:01:52]} 27. c5 {[%emt 0:04:30]} bxc5 {[%emt 0:01:16]} 28. bxc5 {[%emt 0:00:30]} Nd5 {[%emt 0:01:56]} 29. Qd4 {[%emt 0:00:30]} Qc7 {[%emt 0:00:05]} 30. h4 {[%emt 0:05:30]} Ba6 {[%emt 0:08:57]} 31. Be4 {[%emt 0:05:39]} Bb7 {[%emt 0:00:29]} 32. Nc4 {[%emt 0:04:54]} Qf4 {[%emt 0:03:48]} 33. g3 {[%emt 0:05:21]} Qc1 {[%emt 0:00:05]} 34. Nd6 {[%emt 0:03:08]} Bc6 {[%emt 0:02:22]} 35. Nc8 {[%emt 0:00:16]} Qh1 {[%emt 0:01:08]} 36. Bxd5 {[%emt 0:00:38]} Qh2+ {[%emt 0:00:09]} 37. Kf1 {[%emt 0:00:59]} Qh3+ {[%emt 0:00:51]} 38. Ke2 {[%emt 0:00:41]} Qg2+ {[%emt 0:00:31]} 39. Qf2 {[%emt 0:00:44]} Bb5+ {[%emt 0:00:14]} 40. Ke3 {[%emt 0:00:22]} Qxf2+ {[%emt 0:30:17]} 41. Kxf2 {[%emt 0:30:08]} exd5 {[%emt 0:00:03]} 42. Nxa7 {[%emt 0:00:00]} 1-0

[Event "4th Chessfestival Gredine 2018"]
[Site "Ortisei"]
[Date "2018.06.22"]
[Round "7.13"]
[White "Johnsen, Gunnar"]
[Black "Thiel, Thomas"]
[Result "0-1"]
[ECO "D14"]
[WhiteElo "2188"]
[BlackElo "2261"]
[Annotator "NA"]
[PlyCount "62"]
[EventDate "2018.06.16"]
[EventType "swiss"]
[EventCountry "ITA"]
[SourceTitle "playchess.com"]
[Source "ChessBase"]
[SourceQuality "1"]
[TimeControl "40/5400+30:1800+30"]

1. Nf3 {[%emt 0:00:30]} d5 {[%emt 0:01:00]} 2. c4 {[%emt 0:00:00]} c6 {[%emt 0:00:00]} 3. d4 {[%emt 0:00:00]} Nf6 {[%emt 0:00:00]} 4. cxd5 {[%emt 0:00:30]} cxd5 {[%emt 0:00:00]} 5. Nc3 {[%emt 0:00:30]} Nc6 {[%emt 0:01:00]} 6. Bf4 {[%emt 0:00:30]} Bf5 {[%emt 0:00:00]} 7. e3 {[%emt 0:00:30]} e6 {[%emt 0:00:00]} 8. Qb3 {[%emt 0:00:00]} Bb4 {[%emt 0:00:30]} 9. Bb5 {[%emt 0:00:00]} O-O {[%emt 0:18:30]} 10. Bxc6 {[%emt 0:04:30]} Bxc3+ {[%emt 0:00:30]} 11. Qxc3 {[%emt 0:00:00]} Ne4 {[%emt 0:02:30]} 12. Qa3 {[%emt 0:01:00]} bxc6 {[%emt 0:00:30]} 13. O-O {[%emt 0:01:30]} Qb6 {[%emt 0:17:30]} 14. Rfc1 {[%emt 0:11:30]} Rfc8 {[%emt 0:15:30]} 15. Ne5 {[%emt 0:04:30]} c5 {[%emt 0:08:30]} 16. f3 {[%emt 0:09:30]} cxd4 {[%emt 0:12:30]} 17. fxe4 {[%emt 0:03:30]} Bxe4 {[%emt 0:00:00]} 18. Nf3 {[%emt 0:13:30]} d3 {[%emt 0:12:25]} 19. Qb3 {[%emt 0:05:30]} f6 {[%emt 0:00:08]} 20. Qxb6 {[%emt 0:11:30]} axb6 {[%emt 0:00:05]} 21. a3 {[%emt 0:00:00]} Kf7 {[%emt 0:00:34]} 22. Bd6 {[%emt 0:04:00]} e5 {[%emt 0:01:31]} 23. Nd2 {[%emt 0:01:30]} Ke6 {[%emt 0:00:30]} 24. Nxe4 {[%emt 0:02:30]} dxe4 {[%emt 0:00:06]} 25. Bb4 {[%emt 0:00:00]} f5 {[%emt 0:00:36]} 26. Bd2 {[%emt 0:01:00]} g5 {[%emt 0:00:15]} 27. g3 {[%emt 0:00:30]} Kd5 {[%emt 0:00:24]} 28. b3 {[%emt 0:11:33]} Rxc1+ {[%emt 0:00:34]} 29. Bxc1 {[%emt 0:00:13]} Rc8 {[%emt 0:00:04]} 30. Bd2 {[%emt 0:00:39]} Rc2 {[%emt 0:00:10]} 31. Rd1 {[%emt 0:00:20]} Rb2 {[%emt 0:01:15]} 0-1

[Event "4th Chessfestival Gredine 2018"]
[Site "Ortisei"]
[Date "2018.06.22"]
[Round "7.14"]
[White "Wecker, Martin"]
[Black "Curien, Nicolas"]
[Result "0-1"]
[ECO "E05"]
[WhiteElo "2143"]
[BlackElo "2204"]
[Annotator "NA"]
[PlyCount "50"]
[EventDate "2018.06.16"]
[EventType "swiss"]
[EventCountry "ITA"]
[SourceTitle "playchess.com"]
[Source "ChessBase"]
[SourceQuality "1"]
[TimeControl "40/5400+30:1800+30"]

1. d4 {[%emt 0:00:30]} d5 {[%emt 0:01:00]} 2. c4 {[%emt 0:00:00]} e6 {[%emt 0:00:00]} 3. Nf3 {[%emt 0:00:00]} Nf6 {[%emt 0:01:00]} 4. g3 {[%emt 0:00:30]} Be7 {[%emt 0:01:30]} 5. Bg2 {[%emt 0:00:30]} O-O {[%emt 0:00:30]} 6. O-O {[%emt 0:00:00]} dxc4 {[%emt 0:00:00]} 7. Ne5 {[%emt 0:00:00]} c5 {[%emt 0:01:00]} 8. dxc5 {[%emt 0:00:30]} Qc7 {[%emt 0:00:30]} 9. Nxc4 {[%emt 0:00:00]} Qxc5 {[%emt 0:00:30]} 10. b3 {[%emt 0:00:00]} Rd8 {[%emt 0:04:30]} 11. Qc2 {[%emt 0:00:30]} Qh5 {[%emt 0:08:30]} 12. Bb2 {[%emt 0:14:30]} Nc6 {[%emt 0:02:30]} 13. Rd1 {[%emt 0:09:30]} Bd7 {[%emt 0:20:30]} 14. Nc3 {[%emt 0:05:30]} Nb4 {[%emt 0:05:30]} 15. Qc1 {[%emt 0:02:30]} Bc6 {[%emt 0:01:30]} 16. a3 {[%emt 0:06:30]} Bxg2 {[%emt 0:03:30]} 17. Kxg2 {[%emt 0:02:30]} Rxd1 {[%emt 0:03:30]} 18. Qxd1 {[%emt 0:08:30]} Rd8 {[%emt 0:00:30]} 19. Qb1 {[%emt 0:00:30]} Nbd5 {[%emt 0:04:30]} 20. e4 {[%emt 0:09:30]} Nxc3 {[%emt 0:07:30]} 21. Bxc3 {[%emt 0:00:30]} Ng4 {[%emt 0:07:30]} 22. h3 {[%emt 0:06:30]} Nxf2 {[%emt 0:01:30]} 23. Kxf2 {[%emt 0:01:30]} Bc5+ {[%emt 0:00:30]} 24. Ne3 {[%emt 0:00:30]} Bxe3+ {[%emt 0:03:30]} 25. Kxe3 {[%emt 0:00:30]} Qc5+ {[%emt 0:00:00]} 0-1

[Event "4th Chessfestival Gredine 2018"]
[Site "Ortisei"]
[Date "2018.06.22"]
[Round "7.15"]
[White "Lorscheid, Gerhard"]
[Black "Landi, Alberto"]
[Result "1/2-1/2"]
[ECO "D45"]
[WhiteElo "2200"]
[BlackElo "2198"]
[Annotator "NA"]
[PlyCount "23"]
[EventDate "2018.06.16"]
[EventType "swiss"]
[EventCountry "ITA"]
[SourceTitle "playchess.com"]
[Source "ChessBase"]
[SourceQuality "1"]
[TimeControl "40/5400+30:1800+30"]

1. d4 {[%emt 0:00:30]} d5 {[%emt 0:01:00]} 2. c4 {[%emt 0:00:00]} e6 {[%emt 0:00:00]} 3. Nc3 {[%emt 0:00:00]} c6 {[%emt 0:00:00]} 4. e3 {[%emt 0:00:30]} Nf6 {[%emt 0:00:00]} 5. Nf3 {[%emt 0:00:00]} Nbd7 {[%emt 0:00:00]} 6. Qc2 {[%emt 0:00:00]} Bd6 {[%emt 0:00:30]} 7. b3 {[%emt 0:00:30]} O-O {[%emt 0:00:00]} 8. Bb2 {[%emt 0:00:00]} b6 {[%emt 0:01:00]} 9. Bd3 {[%emt 0:01:00]} Bb7 {[%emt 0:01:30]} 10. O-O {[%emt 0:00:30]} Qe7 {[%emt 0:06:30]} 11. Rfe1 {[%emt 0:02:30]} c5 {[%emt 0:13:30]} 12. cxd5 {[%emt 0:00:30]} 1/2-1/2

[Event "4th Chessfestival Gredine 2018"]
[Site "Ortisei"]
[Date "2018.06.22"]
[Round "7.17"]
[White "Fischer, Daniel"]
[Black "Voltolini, Giuseppe"]
[Result "1-0"]
[ECO "C06"]
[WhiteElo "2263"]
[BlackElo "2150"]
[Annotator "NA"]
[PlyCount "69"]
[EventDate "2018.06.16"]
[EventType "swiss"]
[EventCountry "ITA"]
[SourceTitle "playchess.com"]
[Source "ChessBase"]
[SourceQuality "1"]
[TimeControl "40/5400+30:1800+30"]

1. e4 {[%emt 0:00:30]} e6 {[%emt 0:01:00]} 2. d4 {[%emt 0:00:00]} d5 {[%emt 0:00:30]} 3. Nd2 {[%emt 0:00:00]} Nf6 {[%emt 0:00:30]} 4. e5 {[%emt 0:00:30]} Nfd7 {[%emt 0:00:30]} 5. Bd3 {[%emt 0:00:00]} c5 {[%emt 0:00:30]} 6. c3 {[%emt 0:00:00]} Nc6 {[%emt 0:00:30]} 7. Ne2 {[%emt 0:00:30]} cxd4 {[%emt 0:00:30]} 8. cxd4 {[%emt 0:00:00]} f6 {[%emt 0:00:30]} 9. exf6 {[%emt 0:00:00]} Nxf6 {[%emt 0:00:00]} 10. O-O {[%emt 0:00:30]} Bd6 {[%emt 0:00:00]} 11. Nf3 {[%emt 0:00:00]} Qc7 {[%emt 0:00:30]} 12. h3 {[%emt 0:00:00]} O-O {[%emt 0:02:30]} 13. Re1 {[%emt 0:00:30]} e5 {[%emt 0:07:30]} 14. dxe5 {[%emt 0:07:30]} Nxe5 {[%emt 0:00:30]} 15. Nxe5 {[%emt 0:00:30]} Bxe5 {[%emt 0:00:30]} 16. Qb3 {[%emt 0:02:30]} Be6 {[%emt 0:06:30]} 17. Be3 {[%emt 0:03:30]} Bf7 {[%emt 0:05:30]} 18. Rac1 {[%emt 0:12:30]} Qb8 {[%emt 0:02:30]} 19. Nd4 {[%emt 0:07:30]} Bh2+ {[%emt 0:03:30]} 20. Kh1 {[%emt 0:03:30]} Bf4 {[%emt 0:00:30]} 21. Bf5 {[%emt 0:19:30]} Re8 {[%emt 0:09:30]} 22. g3 {[%emt 0:11:30]} Bxe3 {[%emt 0:01:30]} 23. Rxe3 {[%emt 0:00:30]} Rxe3 {[%emt 0:07:30]} 24. Qxe3 {[%emt 0:00:30]} Qd6 {[%emt 0:00:30]} 25. Kg2 {[%emt 0:05:30]} a6 {[%emt 0:08:30]} 26. Qb3 {[%emt 0:05:30]} b5 {[%emt 0:00:30]} 27. Rc6 {[%emt 0:02:49]} Qe5 {[%emt 0:01:30]} 28. Qc3 {[%emt 0:01:09]} g6 {[%emt 0:04:30]} 29. Be6 {[%emt 0:04:22]} b4 {[%emt 0:18:24]} 30. Qxb4 {[%emt 0:03:03]} Rb8 {[%emt 0:00:48]} 31. Qe7 {[%emt 0:04:09]} Qxd4 {[%emt 0:01:44]} 32. Bxf7+ {[%emt 0:01:07]} Kg7 {[%emt 0:00:19]} 33. Be8+ {[%emt 0:03:02]} Kh6 {[%emt 0:00:23]} 34. Qf8+ {[%emt 0:01:32]} Kh5 {[%emt 0:01:40]} 35. Bxg6+ {[%emt 0:01:13]} 1-0

[Event "4th Chessfestival Gredine 2018"]
[Site "Ortisei"]
[Date "2018.06.22"]
[Round "7.18"]
[White "De Vita, Gianni"]
[Black "Dittmar, Peter"]
[Result "0-1"]
[ECO "B18"]
[WhiteElo "2036"]
[BlackElo "2252"]
[Annotator "NA"]
[PlyCount "144"]
[EventDate "2018.06.16"]
[EventType "swiss"]
[EventCountry "ITA"]
[SourceTitle "playchess.com"]
[Source "ChessBase"]
[SourceQuality "1"]
[TimeControl "40/5400+30:1800+30"]

1. e4 {[%emt 0:10:30]} c6 {[%emt 0:07:00]} 2. d4 {[%emt 0:00:30]} d5 {[%emt 0:00:30]} 3. Nd2 {[%emt 0:00:30]} dxe4 {[%emt 0:00:30]} 4. Nxe4 {[%emt 0:00:30]} Qc7 {[%emt 0:00:30]} 5. Bc4 {[%emt 0:00:30]} Bf5 {[%emt 0:00:30]} 6. Ng3 {[%emt 0:00:30]} Bg6 {[%emt 0:00:30]} 7. Nh3 {[%emt 0:00:30]} Nf6 {[%emt 0:00:30]} 8. Nf4 {[%emt 0:00:30]} e6 {[%emt 0:00:30]} 9. Bb3 {[%emt 0:00:30]} Bd6 {[%emt 0:00:30]} 10. Qf3 {[%emt 0:00:30]} Nd5 {[%emt 0:10:30]} 11. Nge2 {[%emt 0:14:30]} a5 {[%emt 0:02:30]} 12. c3 {[%emt 0:00:30]} a4 {[%emt 0:00:30]} 13. Nxg6 {[%emt 0:00:30]} hxg6 {[%emt 0:00:30]} 14. Bc2 {[%emt 0:00:30]} Nd7 {[%emt 0:00:30]} 15. Bg5 {[%emt 0:07:30]} Qa5 {[%emt 0:20:30]} 16. h4 {[%emt 0:00:30]} N5b6 {[%emt 0:03:30]} 17. g3 {[%emt 0:04:30]} Nc4 {[%emt 0:09:30]} 18. Rb1 {[%emt 0:01:30]} e5 {[%emt 0:03:30]} 19. O-O {[%emt 0:01:30]} O-O {[%emt 0:02:30]} 20. Bd3 {[%emt 0:17:30]} exd4 {[%emt 0:07:30]} 21. cxd4 {[%emt 0:08:30]} Ncb6 {[%emt 0:07:30]} 22. Qg4 {[%emt 0:02:30]} Rfe8 {[%emt 0:03:52]} 23. Nc3 {[%emt 0:05:30]} Nf8 {[%emt 0:00:53]} 24. Be3 {[%emt 0:10:37]} Nd5 {[%emt 0:01:11]} 25. Nxd5 {[%emt 0:00:15]} Qxd5 {[%emt 0:00:10]} 26. a3 {[%emt 0:02:29]} Nh7 {[%emt 0:03:33]} 27. Rfe1 {[%emt 0:01:40]} Nf6 {[%emt 0:01:11]} 28. Qe2 {[%emt 0:01:14]} Re7 {[%emt 0:01:02]} 29. Bc4 {[%emt 0:00:25]} Qa5 {[%emt 0:00:47]} 30. Qf3 {[%emt 0:01:35]} Rae8 {[%emt 0:00:27]} 31. Red1 {[%emt 0:00:39]} Qf5 {[%emt 0:02:05]} 32. Kg2 {[%emt 0:01:43]} Nd5 {[%emt 0:04:01]} 33. Bxd5 {[%emt 0:00:59]} Qxd5 {[%emt 0:00:08]} 34. Qxd5 {[%emt 0:00:51]} cxd5 {[%emt 0:00:08]} 35. b3 {[%emt 0:01:07]} Ra8 {[%emt 0:00:38]} 36. b4 {[%emt 0:00:29]} Rc8 {[%emt 0:00:16]} 37. Rbc1 {[%emt 0:00:51]} Rec7 {[%emt 0:01:07]} 38. Kf3 {[%emt 0:01:23]} Kf8 {[%emt 0:03:39]} 39. Rxc7 {[%emt 0:00:49]} Rxc7 {[%emt 0:00:08]} 40. Rd3 {[%emt 0:00:33]} Rc2 {[%emt 0:01:14]} 41. Bf4 {[%emt 0:03:21]} Ke7 {[%emt 0:12:30]} 42. Bxd6+ {[%emt 0:01:30]} Kxd6 {[%emt 0:00:00]} 43. Ke3 {[%emt 0:01:30]} Ra2 {[%emt 0:02:00]} 44. Rc3 {[%emt 0:02:30]} f6 {[%emt 0:00:30]} 45. Kf3 {[%emt 0:02:30]} Kd7 {[%emt 0:00:30]} 46. Ke3 {[%emt 0:01:30]} Rb2 {[%emt 0:00:00]} 47. f3 {[%emt 0:03:11]} b6 {[%emt 0:00:00]} 48. Rd3 {[%emt 0:07:57]} Kc6 {[%emt 0:08:24]} 49. Rc3+ {[%emt 0:03:34]} Kb5 {[%emt 0:00:09]} 50. Kd3 {[%emt 0:01:22]} Rg2 {[%emt 0:00:15]} 51. g4 {[%emt 0:01:05]} f5 {[%emt 0:03:28]} 52. gxf5 {[%emt 0:02:38]} gxf5 {[%emt 0:00:08]} 53. Ke3 {[%emt 0:00:47]} Rb2 {[%emt 0:03:34]} 54. Kd3 {[%emt 0:01:04]} f4 {[%emt 0:00:31]} 55. Rc7 {[%emt 0:00:57]} Rf2 {[%emt 0:01:10]} 56. Rxg7 {[%emt 0:01:23]} Rxf3+ {[%emt 0:00:11]} 57. Kd2 {[%emt 0:01:16]} Rxa3 {[%emt 0:01:41]} 58. Rg6 {[%emt 0:00:47]} Rh3 {[%emt 0:01:11]} 59. Rd6 {[%emt 0:00:46]} a3 {[%emt 0:02:18]} 60. Kc2 {[%emt 0:00:34]} Kc4 {[%emt 0:00:24]} 61. Rc6+ {[%emt 0:00:40]} Kxb4 {[%emt 0:00:51]} 62. Rxb6+ {[%emt 0:00:09]} Kc4 {[%emt 0:00:15]} 63. h5 {[%emt 0:01:11]} Rh2+ {[%emt 0:00:09]} 64. Kb1 {[%emt 0:00:01]} Rxh5 {[%emt 0:00:44]} 65. Rf6 {[%emt 0:00:34]} Kb3 {[%emt 0:00:14]} 66. Rb6+ {[%emt 0:00:19]} Kc3 {[%emt 0:00:10]} 67. Rf6 {[%emt 0:00:27]} Rh4 {[%emt 0:00:12]} 68. Ra6 {[%emt 0:00:20]} Rh1+ {[%emt 0:00:24]} 69. Ka2 {[%emt 0:00:07]} Kxd4 {[%emt 0:00:24]} 70. Rxa3 {[%emt 0:00:15]} Rc1 {[%emt 0:00:28]} 71. Kb2 {[%emt 0:00:10]} Rc8 {[%emt 0:00:18]} 72. Kb1 {[%emt 0:00:31]} Ke4 {[%emt 0:00:11]} 0-1

[Event "4th Chessfestival Gredine 2018"]
[Site "Ortisei"]
[Date "2018.06.22"]
[Round "7.19"]
[White "Jaracz, Barbara"]
[Black "Lumachi, Gabriele"]
[Result "0-1"]
[ECO "C65"]
[WhiteElo "2246"]
[BlackElo "1989"]
[Annotator "NA"]
[PlyCount "48"]
[EventDate "2018.06.16"]
[EventType "swiss"]
[EventCountry "ITA"]
[SourceTitle "playchess.com"]
[Source "ChessBase"]
[SourceQuality "1"]
[TimeControl "40/5400+30:1800+30"]

1. e4 {[%emt 0:00:30]} e5 {[%emt 0:01:00]} 2. Nf3 {[%emt 0:00:00]} Nc6 {[%emt 0:00:00]} 3. Bb5 {[%emt 0:00:00]} Nf6 {[%emt 0:00:00]} 4. d3 {[%emt 0:00:30]} Bc5 {[%emt 0:00:00]} 5. c3 {[%emt 0:01:30]} O-O {[%emt 0:00:00]} 6. O-O {[%emt 0:00:30]} d6 {[%emt 0:00:00]} 7. h3 {[%emt 0:00:30]} Ne7 {[%emt 0:02:00]} 8. Be3 {[%emt 0:05:30]} Bb6 {[%emt 0:02:30]} 9. Nbd2 {[%emt 0:07:30]} c6 {[%emt 0:00:30]} 10. Ba4 {[%emt 0:01:30]} Ng6 {[%emt 0:02:30]} 11. d4 {[%emt 0:02:30]} Re8 {[%emt 0:01:30]} 12. Bc2 {[%emt 0:01:30]} Nh5 {[%emt 0:15:30]} 13. Nc4 {[%emt 0:13:30]} exd4 {[%emt 0:09:30]} 14. Nxd4 {[%emt 0:14:30]} Nf6 {[%emt 0:02:30]} 15. Nxb6 {[%emt 0:10:30]} axb6 {[%emt 0:00:30]} 16. Nf5 {[%emt 0:06:30]} d5 {[%emt 0:03:30]} 17. Ng3 {[%emt 0:04:30]} Qc7 {[%emt 0:05:30]} 18. exd5 {[%emt 0:06:30]} Nxd5 {[%emt 0:01:30]} 19. Bd4 {[%emt 0:01:30]} Rd8 {[%emt 0:04:30]} 20. Nh5 {[%emt 0:05:07]} c5 {[%emt 0:11:30]} 21. Bxg7 {[%emt 0:05:33]} Ndf4 {[%emt 0:02:30]} 22. Bxg6 {[%emt 0:01:11]} Rxd1 {[%emt 0:06:30]} 23. Rfxd1 {[%emt 0:03:38]} fxg6 {[%emt 0:00:30]} 24. Nf6+ {[%emt 0:02:32]} Kf7 {[%emt 0:00:30]} 0-1